[Event "Khanty-Mansiysk FIDE GP (Women)"]
[Site "Khanty-Mansiysk"]
[Date "2014.04.15"]
[Round "6"]
[White "Zhao, Xue"]
[Black "Girya, Olga"]
[Result "0-1"]
[ECO "D10"]
[WhiteElo "2552"]
[BlackElo "2450"]
[Annotator "ChessBase Website"]
[PlyCount "86"]
[EventDate "2014.04.09"]
[EventType "tourn"]
[EventRounds "11"]
[EventCountry "RUS"]
[EventCategory "10"]
[SourceTitle "CBM 160"]
[Source "ChessBase"]
[SourceDate "2014.05.15"]
[SourceVersion "1"]
[SourceVersionDate "2014.05.15"]
[SourceQuality "1"]
[TimeControl "40/5400+30:1800+30"]
[WhiteClock "1:30:00"]
[BlackClock "1:30:00"]

1. d4 {[%emt 0:00:11]} d5 {[%emt 0:00:00]} 2. c4 {[%emt 0:00:04]} c6 {[%emt 0:
00:00]} 3. e3 {[%emt 0:00:05]} Nf6 {[%emt 0:00:00]} 4. Bd3 {[%emt 0:00:19]} e5
{[%emt 0:00:24]} 5. dxe5 {[%emt 0:03:11]} (5. Nc3 e4 6. Bc2 Bd6 7. f3 O-O 8.
fxe4 Nxe4 9. Nf3 f5 10. cxd5 Nxc3 11. bxc3 cxd5 12. O-O Nc6 13. Bb3 Be6 14. e4
fxe4 15. Ng5 Qe7 16. Re1 h6 17. Nxe6 Qxe6 18. Qh5 Rf5 19. Qh3 Raf8 20. Be3 Qf7
21. g3 Na5 22. Bd1 h5 23. Kh1 Nc4 24. Bg1 g6 25. Be2 b5 26. a4 b4 27. cxb4 Bxb4
28. Rf1 a5 29. Rxf5 Qxf5 30. Qxf5 Rxf5 31. Rc1 Bd2 32. Rd1 e3 33. Rb1 Na3 34.
Rb2 Bc1 {Zvjaginsev,V (2659)-Korneev,O (2622) St Petersburg 2013 1/2-1/2}) 5...
dxc4 {[%emt 0:00:13]} 6. exf6 {[%emt 0:07:08]} cxd3 {[%emt 0:02:16]} 7. fxg7 {
[%emt 0:00:06] It is very unclear to me what Zhao Xue was thinking during the
opening. After only seven moves of chess she was clearly worse with White and
such a mistake is not forgivable for a grandmaster level player. Girya took
her advantage and kept putting pressure on White's position, until eventually
winning a queen endgame that was difficult to defend for White, if defendable
at all.} Bxg7 {[%emt 0:00:07]} 8. Nf3 {[%emt 0:03:15]} Na6 $146 {[%emt 0:19:18]
} (8... O-O 9. O-O Bg4 10. h3 Bh5 11. Nbd2 a5 12. Rb1 Na6 13. a3 Nc7 14. Re1 a4
15. Nf1 f5 16. b3 Nb5 17. Bb2 Nc3 18. Bxc3 Bxc3 19. N1d2 Bxf3 20. Nxf3 Bxe1 21.
Nxe1 d2 22. Nf3 Qd3 23. bxa4 Rfd8 24. Rxb7 Qc3 25. Kh2 Rab8 26. Rxb8 Rxb8 27.
Nxd2 Rd8 28. Qb3+ Qxb3 29. Nxb3 Rd3 30. Nc5 Rc3 31. Nb7 Rxa3 32. a5 Kf8 33. Kg3
Ra4 34. Nd8 Rxa5 35. Nxc6 Rc5 36. Nd4 Kf7 37. Kf4 Kf6 38. f3 {Cvitan,O (2410)
-Kirov,N (2445) Baku 1983 1/2-1/2}) 9. O-O {[%emt 0:00:53]} Bg4 {[%emt 0:01:22]
} 10. h3 {[%emt 0:05:19]} Bh5 {[%emt 0:00:34]} 11. Nbd2 {[%emt 0:01:20]} Nc5 {
[%emt 0:01:42]} 12. Rb1 {[%emt 0:02:13]} f5 {[%emt 0:12:09]} 13. b4 {[%emt 0:
12:34]} Ne4 {[%emt 0:00:11]} 14. Bb2 {[%emt 0:00:47]} Nxd2 {[%emt 0:20:12]} 15.
Qxd2 {[%emt 0:00:06]} Bxf3 {[%emt 0:00:10]} 16. gxf3 {[%emt 0:00:04]} Rg8 {
[%emt 0:01:40]} 17. Kh2 {[%emt 0:00:54]} Qd6+ {[%emt 0:02:11]} 18. f4 {[%emt 0:
01:30]} O-O-O {[%emt 0:01:46]} 19. Bxg7 {[%emt 0:01:28]} Rxg7 {[%emt 0:00:02]}
20. Rg1 {[%emt 0:00:06]} Rdg8 {[%emt 0:09:24]} 21. Rg3 {[%emt 0:02:19]} Qd5 {
[%emt 0:03:45]} 22. Rbg1 {[%emt 0:06:29]} Rxg3 {[%emt 0:08:18]} 23. fxg3 {
[%emt 0:00:18]} h5 {[%emt 0:01:01]} 24. Rg2 {[%emt 0:10:30]} Qe4 {[%emt 0:00:
40]} 25. Kg1 {[%emt 0:07:29]} Kc7 {[%emt 0:05:29]} 26. Kf2 {[%emt 0:00:41]} h4
{[%emt 0:00:43]} 27. Rg1 {[%emt 0:00:40]} hxg3+ {[%emt 0:03:13]} 28. Rxg3 {
[%emt 0:00:18]} Rxg3 {[%emt 0:04:23]} 29. Kxg3 {[%emt 0:00:05]} Qc4 {[%emt 0:
00:04]} 30. Qb2 {[%emt 0:04:44]} Qd5 {[%emt 0:00:19]} 31. Qd2 {[%emt 0:00:13]}
Qc4 {[%emt 0:00:12]} 32. Qb2 {[%emt 0:00:04]} Qd5 {[%emt 0:00:02]} 33. Qd2 {
[%emt 0:00:04]} a5 {[%emt 0:00:39]} 34. bxa5 {[%emt 0:01:03]} c5 {[%emt 0:00:
40]} 35. h4 {[%emt 0:03:08]} c4 {[%emt 0:00:46]} 36. h5 {[%emt 0:00:17]} Qc5 {
[%emt 0:02:02]} 37. h6 {[%emt 0:00:11]} c3 {[%emt 0:00:16]} 38. Qxd3 {[%emt 0:
00:37]} c2 {[%emt 0:00:01]} 39. h7 {[%emt 0:02:40]} c1=Q {[%emt 0:00:06]} 40.
h8=Q {[%emt 0:00:00]} Qg1+ {[%emt 0:00:00]} 41. Kf3 {[%emt 0:00:10]} Qc6+ {
[%emt 0:01:15]} 42. e4 {[%emt 0:02:20]} fxe4+ {[%emt 0:01:28]} 43. Qxe4 {
[%emt 0:00:02]} Qd1+ {[%emt 0:00:49]} 0-1

[Event "Khanty-Mansiysk FIDE GP (Women)"]
[Site "Khanty-Mansiysk"]
[Date "2014.04.21"]
[Round "11"]
[White "Batchimeg, Tuvshintugs"]
[Black "Girya, Olga"]
[Result "1/2-1/2"]
[ECO "D10"]
[WhiteElo "2340"]
[BlackElo "2450"]
[Annotator "ChessBase Website"]
[PlyCount "137"]
[EventDate "2014.04.09"]
[EventType "tourn"]
[EventRounds "11"]
[EventCountry "RUS"]
[EventCategory "10"]
[SourceTitle "CBM 160"]
[Source "ChessBase"]
[SourceDate "2014.05.15"]
[SourceVersion "1"]
[SourceVersionDate "2014.05.15"]
[SourceQuality "1"]
[TimeControl "40/5400+30:1800+30"]
[WhiteClock "1:30:00"]
[BlackClock "1:30:00"]

1. d4 {[%emt 0:00:00]} d5 {[%emt 0:00:00]} 2. c4 {[%emt 0:00:00]} c6 {[%emt 0:
00:00]} 3. cxd5 {[%emt 0:00:00]} cxd5 {[%emt 0:00:00]} 4. Nc3 {[%emt 0:00:09]}
Nf6 {[%emt 0:00:02]} 5. Bf4 {[%emt 0:00:12]} Nc6 {[%emt 0:00:09]} 6. e3 {
[%emt 0:00:13]} Bf5 {[%emt 0:00:37]} 7. Qb3 {[%emt 0:00:16]} Na5 {[%emt 0:00:
23]} 8. Qa4+ {[%emt 0:00:06]} Bd7 {[%emt 0:00:05]} 9. Qc2 {[%emt 0:00:15]} Rc8
{[%emt 0:01:06]} (9... e6 10. Bd3 Nh5 11. Be5 Nc6 12. Qe2 Nxe5 13. dxe5 g6 14.
Nf3 Bb4 15. O-O a6 16. Qc2 Rc8 17. Qb3 Qa5 18. Rfc1 O-O 19. a3 Bxc3 20. Rxc3
Rxc3 21. Qxc3 Qxc3 22. bxc3 Rc8 23. Rc1 Ng7 24. Kf1 Ne8 25. Ke2 Kf8 26. Kd2 Nc7
27. Nd4 Ke7 28. Rb1 b5 29. h4 Na8 30. h5 Nb6 {1/2-1/2 (30) Vitiugov,N (2737)
-Dreev,A (2673) Caleta 2014}) 10. Bd3 {[%emt 0:06:05]} e6 {[%emt 0:00:24]} 11.
Nf3 {[%emt 0:00:57]} Be7 {[%emt 0:00:46]} 12. O-O {[%emt 0:01:54]} a6 {[%emt 0:
00:39]} 13. Ne5 {[%emt 0:00:35]} Bb5 $146 {[%emt 0:26:17]} (13... Bc6 14. Rac1
O-O 15. Qe2 Nd7 16. Rfd1 f5 17. Rc2 Nxe5 18. Bxe5 b5 19. h3 Qd7 20. Rdc1 Nc4
21. Bf4 Bf6 22. Nb1 e5 23. dxe5 Nxe5 24. Bxe5 Bxe5 25. Nd2 d4 26. Nf3 Bxf3 27.
Qxf3 Rxc2 28. Rxc2 dxe3 29. Qxe3 Re8 30. Qf3 g6 31. g3 Bg7 32. h4 h5 33. Kh2
Kh7 34. b3 Rd8 35. Rd2 Qd5 36. Qe2 Qe5 37. Qf3 Rd4 38. Re2 Qd6 39. Bc2 Rxh4+
40. Kg1 Rg4 41. Kf1 h4 42. gxh4 Rxh4 43. a4 {Nakhbayeva,G (2307)-Girya,O (2439)
Tashkent 2013 0-1 (107)}) 14. Bxb5+ {[%emt 0:08:40]} axb5 {[%emt 0:00:05]} 15.
Qe2 {[%emt 0:00:31]} b4 {[%emt 0:00:10]} 16. Qb5+ {[%emt 0:00:37]} Nc6 {
[%emt 0:00:31]} 17. Na4 {[%emt 0:01:52]} O-O {[%emt 0:00:48]} 18. Qxb7 {
[%emt 0:09:12] Tuvshintugs won a pawn in the Exchange Slav against Girya but
the Russian obtained a nagging rook on c2 that bound all of White's pieces.
She further sacrificed another pawn to obtain a blockading bishop on b4, and
despite White's material advantage it was unclear how to make progress.
Tuvshintugs managed to liberate herself by giving one pawn back, but the
resulting rook endgame was closer to a draw than to a win.} Nxe5 {[%emt 0:03:
06]} 19. Bxe5 {[%emt 0:02:23]} Rc2 $44 {[%emt 0:02:12][%csl Gc2]} 20. Bxf6 {
[%emt 0:11:39]} gxf6 {[%emt 0:00:08]} 21. Rac1 {[%emt 0:00:16]} Qc8 {[%emt 0:
00:26]} 22. Qxc8 {[%emt 0:00:10]} Rfxc8 {[%emt 0:00:08]} 23. Rxc2 {[%emt 0:00:
08]} Rxc2 {[%emt 0:00:04]} 24. Rd1 {[%emt 0:00:33]} Kf8 {[%emt 0:16:54]} 25.
Kf1 {[%emt 0:02:41]} Ke8 {[%emt 0:06:02]} 26. Ke1 {[%emt 0:00:53]} b3 {[%emt 0:
02:13]} 27. axb3 {[%emt 0:01:09]} Bb4+ {[%emt 0:00:26]} 28. Kf1 {[%emt 0:00:08]
} Kd7 {[%emt 0:04:32]} 29. g4 {[%emt 0:07:23]} Kc6 {[%emt 0:07:26]} 30. Kg2 {
[%emt 0:01:16]} Kc7 {[%emt 0:05:40]} 31. Kf3 {[%emt 0:00:42]} Kc6 {[%emt 0:00:
39]} 32. h4 {[%emt 0:01:15]} h6 {[%emt 0:01:28]} 33. Rg1 {[%emt 0:08:05]} Kc7 {
[%emt 0:06:07]} 34. Rf1 {[%emt 0:13:05]} Kd6 {[%emt 0:11:12]} 35. Ra1 {[%emt 0:
13:34]} Ke7 {[%emt 0:01:38]} 36. Rg1 {[%emt 0:02:46]} Kd6 {[%emt 0:00:36]} 37.
Rf1 {[%emt 0:01:03]} e5 {[%emt 0:03:30]} 38. dxe5+ {[%emt 0:00:26]} fxe5 {
[%emt 0:00:33]} 39. Rd1 {[%emt 0:00:21]} Ke6 {[%emt 0:00:27]} 40. Nb6 {[%emt 0:
00:00]} Rc5 {[%emt 0:00:00]} 41. e4 {[%emt 0:11:15]} dxe4+ {[%emt 0:05:18]} 42.
Kxe4 {[%emt 0:00:06]} Rc2 {[%emt 0:00:16]} 43. f4 {[%emt 0:00:36]} exf4 {
[%emt 0:02:50]} 44. Nd5 {[%emt 0:00:48]} Bd6 {[%emt 0:02:19]} 45. Nxf4+ {
[%emt 0:00:30]} Bxf4 {[%emt 0:00:06]} 46. Kxf4 {[%emt 0:00:03]} Rxb2 {[%emt 0:
01:31]} 47. Rd3 {[%emt 0:00:21]} Rb1 {[%emt 0:00:31]} 48. Rc3 {[%emt 0:03:01]}
Kd5 {[%emt 0:07:50]} 49. Rc7 {[%emt 0:07:09]} Rf1+ {[%emt 0:01:26]} 50. Kg3 {
[%emt 0:01:36]} f5 {[%emt 0:06:44]} 51. gxf5 {[%emt 0:04:41]} Rxf5 {[%emt 0:00:
02]} 52. Kg4 {[%emt 0:06:04]} Rf6 {[%emt 0:00:05]} 53. Rb7 {[%emt 0:05:15]} Kc6
{[%emt 0:02:03]} 54. Rh7 {[%emt 0:00:20]} Kd5 {[%emt 0:00:10]} 55. Kh5 {
[%emt 0:00:56]} Rb6 {[%emt 0:00:03]} 56. Rxh6 {[%emt 0:00:09]} Rxb3 {[%emt 0:
00:03]} 57. Rf6 {[%emt 0:00:47]} Ke5 {[%emt 0:00:17]} 58. Ra6 {[%emt 0:01:55]}
Kf5 {[%emt 0:01:59]} 59. Kh6 {[%emt 0:00:06]} Rb8 {[%emt 0:00:57]} 60. Ra4 {
[%emt 0:01:57]} Rb6+ {[%emt 0:00:49]} 61. Kh5 {[%emt 0:00:17]} Rb8 {[%emt 0:00:
16]} 62. Ra5+ {[%emt 0:00:22]} Kf6 {[%emt 0:00:02]} 63. Ra6+ {[%emt 0:00:19]}
Kg7 {[%emt 0:00:08]} 64. Ra7+ {[%emt 0:00:41]} Kg8 {[%emt 0:00:06]} 65. Kg6 {
[%emt 0:00:37]} Rb6+ {[%emt 0:00:05]} 66. Kg5 {[%emt 0:00:09]} Rb5+ {[%emt 0:
00:01]} 67. Kg6 {[%emt 0:00:16]} Rb6+ {[%emt 0:00:03]} 68. Kg5 {[%emt 0:00:07]}
Rb5+ {[%emt 0:00:01]} 69. Kg6 {[%emt 0:00:11]} 1/2-1/2

[Event "EU-ch 12th"]
[Site "Aix les Bains"]
[Date "2011.03.30"]
[Round "8"]
[White "Khismatullin, Denis Rimovich"]
[Black "Vitiugov, Nikita"]
[Result "0-1"]
[ECO "D10"]
[WhiteElo "2662"]
[BlackElo "2720"]
[Annotator "Marchand,A/Primel,D"]
[PlyCount "74"]
[EventDate "2011.03.22"]
[EventType "swiss"]
[EventRounds "11"]
[EventCountry "FRA"]
[SourceTitle "CBM 142 Extra"]
[Source "ChessBase"]
[SourceDate "2011.06.27"]
[SourceVersion "1"]
[SourceVersionDate "2011.06.27"]
[SourceQuality "1"]
[TimeControl "40/5400+30:1800+30"]

1. d4 d5 2. c4 c6 3. Nc3 dxc4 (3... Nf6 {La grande ligne}) 4. e4 (4. a4 $143 e5
5. dxe5 Qxd1+ 6. Kxd1 Na6 $132 {Azmaiparashvili,Z (2660)-Gulko,B (2615) San
Roque 1996 (1) 1/2}) (4. e3 b5 5. a4 b4 6. Ne4) 4... b5 5. a4 b4 6. Nb1 (6. Na2
{La grande ligne} Nf6 7. e5 Nd5 8. Bxc4 e6 (8... Bf5 9. Ne2 e6 10. Ng3 Bg6 11.
h4 h6 12. h5 Bh7 13. O-O $6 (13. Qg4 $142 {[%csl Rg7]} Nd7 14. O-O N7b6 15. Bb3
a5 16. Bd2 $14 {Bartel inf 114}) 13... Qh4 $132 {[%csl Rh5];Wojtaszek,R (2706)
-Bartel,M (2658) POL-ch Warsaw 2012 (4) 0-1}) 9. Nf3 Be7 10. Bd2 a5) (6. Nce2 {
L'alternative} Nf6 7. Ng3 Ba6) 6... Ba6 7. Qc2 (7. Nf3 e6) (7. Be3 Nf6 8. f3 e5
$132) 7... Nf6 (7... e5) 8. Nd2 {La tentative d'amélioration sur une partie
précédente de l'adversaire} (8. Bxc4 {Akobian,V (2628)-Vitiugov,N (2692) WchT
7th Bursa 2010 (3.4) 0-1}) 8... e6 $146 (8... c3 9. Bxa6 Nxa6 10. bxc3 e6 {
Onischuk,A (2701)-Caruana,F (2697) Reggio Emilia 53rd 2010 (7) 1/2}) 9. Bxc4
Bxc4 10. Qxc4 (10. Nxc4 $5 {Les Blancs ont des bonnes compensations après ce
gambit} Qxd4 11. f3 {[%cal Gc1e3]} Be7 12. Bf4 {[%cal Ga1d1]} (12. Ne2) (12.
Be3 Qd8 13. Rd1 Nbd7 (13... Qc7) 14. Ne2 O-O 15. O-O c5) 12... O-O 13. Rd1 Qc5
14. Ne2 Nbd7 15. Be3 $36) 10... c5 $1 11. Ngf3 (11. dxc5 Nbd7 12. Nb3 Rc8 13.
Be3 Ng4 14. Bd4 e5 15. h3 exd4 16. hxg4 Nxc5 (16... Bxc5) 17. Nf3 $14) 11...
Nbd7 12. O-O cxd4 {[%cal Ga8c8,Gc8c4]} (12... Be7 13. e5 Nd5 14. Ne4 (14. Nb3)
14... cxd4 15. Qxd4 O-O) 13. e5 {[%cal Gd2e4]} Nd5 14. Nb3 {[%csl Gc5][%cal
Gb3d4,Gc1g5]} (14. Ne4 Rc8 (14... Qb6 15. a5) 15. Qxd4 Bc5 16. Nxc5 Nxc5 17.
Qg4 {[%csl Rg7]} g6 (17... O-O 18. Bh6) 18. Bh6 $16 {[%csl Re8]}) 14... Be7 15.
Qxd4 (15. Nbxd4 Rc8 $132) 15... Qc7 (15... O-O 16. Qg4 {[%cal Gc1h6]}) 16. Qe4
Rc8 17. Nbd4 {[%cal Gd4b5,Gb5c7,Gb5d6]} O-O 18. Bd2 Qc4 (18... a5 19. Rac1 Nc5
$11 {[%cal Gc7d7,Gc5e4,Gc5a4]}) (18... Nc5) 19. Rfd1 (19. Rac1 Qa6 20. b3 Nc5 (
20... Nc3)) 19... Nc5 20. Qg4 $1 {[%cal Gd2h6,Gg4g8]} Rfd8 21. Bh6 $36 (21.
Rac1 $5 Qa6 {[%csl Ra6]} 22. b3 Bf8) 21... Bf8 22. Bg5 Rd7 23. h3 b3 {[%csl
Rb2]} (23... Nb3 $5 24. Nxb3 Qxb3 {[%cal Gb3b2]}) 24. Nd2 Qb4 $1 25. N4xb3 $2 (
25. N2f3 $142 $13) (25. Ne4 h5 $1) 25... Qxg4 26. hxg4 Nd3 $36 {[%csl Gd3]
[%cal Gd3b2,Gd3e5]} 27. Nf3 Nxb2 28. Rdb1 Nd3 $19 29. Nbd2 h6 30. Bh4 Nc3 31.
Rb3 Nxe5 32. Nxe5 Rxd2 33. Rb7 g5 34. Bg3 Ne2+ 35. Kf1 Nxg3+ 36. fxg3 Rcc2 37.
Rxf7 Bg7 0-1

[Event "Metz op 31th"]
[Site "Metz"]
[Date "2013.04.20"]
[Round "1"]
[White "Svetushkin, Dmitry"]
[Black "Hilverda, Alexander"]
[Result "1-0"]
[ECO "D10"]
[WhiteElo "2588"]
[BlackElo "2329"]
[Annotator "Metz Alekhine/Primel,D"]
[PlyCount "75"]
[EventDate "2013.04.20"]
[EventType "swiss"]
[EventRounds "9"]
[EventCountry "FRA"]
[SourceTitle "EXT 2016"]
[Source "ChessBase"]
[SourceDate "2015.10.08"]
[SourceVersion "1"]
[SourceVersionDate "2015.10.08"]
[SourceQuality "1"]
[TimeControl "40/5400:1800+30"]
[WhiteClock "1:30:00"]
[BlackClock "1:30:00"]

1. d4 d5 2. c4 c6 3. Nc3 dxc4 4. e4 (4. e3 b5 5. a4 b4 6. Ne4) 4... b5 (4... e5
{L'altenative} 5. Nf3 exd4 6. Qxd4 Qxd4 7. Nxd4 b5 8. a4 b4 9. Nd1 Ba6 10. Be3
Nf6 11. f3 Nfd7 12. Rc1 Ne5 13. Nf2 {Hausrath,D (2425)-Miltner,A (2375)
Bundesliga 9697 1996 [4] 1-0} (13. f4 Nd3+ 14. Bxd3 cxd3 15. Nxc6 {Jones,G 
(2645)-Lalic,B Kilkenny Masters 2013 (4.3) 1/2} (15. Nf2 $142 {Lalic inf 119}))
) 5. a4 b4 6. Na2 Nf6 7. e5 Nd5 8. Bxc4 e6 9. Nf3 a5 10. Bd2 (10. O-O {La
grande ligne} Be7 11. Bd2 O-O 12. Nc1) (10. Ng5 Be7 11. Qh5 Bxg5 12. Bxg5 Qb6
13. Qh4 b3 14. Nc3 Nxc3 15. bxc3 Ba6 16. Bxa6 Qxa6 17. Ra3 c5 18. Rxb3 Qc4 19.
Rb7 O-O 20. Qg3 cxd4 21. cxd4 Nc6 22. Bh6 g6 23. Qb3 Qxd4 24. O-O Rfb8 25. Qb5
Qd5 26. Qxd5 exd5 27. Rd7 Rd8 28. Rxd8+ Rxd8 29. Bg5 Rb8 30. h3 Rb4 31. Rd1
Rxa4 32. Rxd5 Rc4 33. Bh6 Rh4 34. Bg5 Rc4 35. Bh6 Rh4 36. Bg7 Nb8 37. Rd7 {
1/2-1/2 (37) Aronian,L (2813)-Bluebaum,M (2511) Meissen 2013}) 10... Ba6 11.
Qe2 Bxc4 12. Qxc4 Nb6 13. Qc2 Qd5 14. Nc1 c5 $5 $146 {[%cal Gb8d7,Ga8c8,Gc8c2]
Les Noirs veulent jouer activement à l'aile-dame pour essayer de profiter de
l'exposition de la Qc2 mais au risque de laisser le K Noir au centre} (14...
N8d7 15. Nd3 c5 16. Nf4 Qb7 17. dxc5 Nxc5 18. O-O b3 19. Qb1 g6 20. Rc1 Be7 21.
Be3 Nbxa4 22. h4 Qb4 23. h5 Rd8 24. hxg6 hxg6 25. Nxg6 fxg6 26. Qxg6+ Kd7 27.
Qf7 Nd3 28. Nd4 Nac5 29. Rxc5 Nxc5 30. Rd1 Kc8 31. Rc1 Rd7 32. Qxe6 Kb7 33.
Qc6+ Kb8 34. e6 Rxd4 35. Bxd4 Qxd4 36. Qb6+ Kc8 37. Qc6+ Kd8 38. Qb6+ Ke8 39.
Qb8+ Qd8 40. Qe5 Rh6 {0-1 (40) Korobov,A (2670)-Grigoryan,A (2595) Moscow 2011}
) 15. Ne2 N8d7 16. O-O (16. Nf4 Qb7 17. Be3 Rc8 $132) 16... Rc8 $11 {[%cal
Gc8c2,Gc5d4]} (16... cxd4 17. Nf4 Qb7 18. Qd3 Bc5 19. Rfc1 Nd5 (19... O-O $2
20. Ng5) 20. Nxd4 Nxe5 21. Qe4 Nd7 22. Nxd5 Qxd5 23. Qxd5 exd5 24. Nb3 Bb6 25.
Rc6 $32 O-O 26. Rac1 Rfe8) 17. Nf4 Qb7 18. Rfc1 $32 {[%csl Re8]} cxd4 (18...
Be7 {Plus solide} 19. Qd3 O-O 20. Qb5 {Moins bon dans cet ordre de coups que
dans la partie} Qa8 (20... c4 21. Qxa5 g5 $13 (21... c3)) 21. dxc5 Rxc5 $132)
19. Qd3 Bc5 (19... Rxc1+ 20. Bxc1 (20. Rxc1 Nxa4) 20... Be7 (20... Bc5)) 20.
Qb5 $1 {[%csl Ra5]} O-O 21. Nd3 Qd5 22. Qxa5 {[%csl Ga4]} Nc4 23. Qb5 Nxd2 24.
Nxd2 Rb8 (24... Rc7 {[%cal Gf8c8,Gf8b8]}) 25. Qc4 Rfc8 26. Qxd5 exd5 {[%csl
Ga4,Rd4,Rd5] La partie devient difficile pour les Noirs avec une mauvaise
structure et face à un P passé} 27. a5 $36 Be7 28. Kf1 (28. Nb3) 28... Kf8
29. Rxc8+ Rxc8 30. Nb3 $18 f6 31. f4 fxe5 32. fxe5 Bg5 33. a6 Nb6 34. a7 Ke8
35. Ra6 Na8 36. Nxd4 Be3 37. Nf5 Bc5 38. Nxg7+ 1-0

[Event "Metz op 31th"]
[Site "Metz"]
[Date "2013.04.25"]
[Round "9"]
[White "Jankovic, Alojzije"]
[Black "Vishnu, Prasanna V"]
[Result "1-0"]
[ECO "D10"]
[WhiteElo "2537"]
[BlackElo "2470"]
[Annotator "Metz Alekhine/Primel,D"]
[PlyCount "73"]
[EventDate "2013.04.20"]
[EventType "swiss"]
[EventRounds "9"]
[EventCountry "FRA"]
[SourceTitle "EXT 2016"]
[Source "ChessBase"]
[SourceDate "2015.10.08"]
[SourceVersion "1"]
[SourceVersionDate "2015.10.08"]
[SourceQuality "1"]
[TimeControl "40/5400:1800+30"]
[WhiteClock "1:30:00"]
[BlackClock "1:30:00"]

1. d4 d5 2. c4 c6 3. Nc3 Nf6 4. cxd5 {La variante d'échange de la Slave a un
caractère très annulant mais elle donne des positions assez techniques
pouvant avantager le meilleur joueur.} cxd5 5. Bf4 Nc6 6. e3 Bf5 7. Qb3 $5 {
Une idée intéressante retardant le coup naturel Nf3 pour tenter de profiter
de la sortie Bf5} Na5 $8 (7... Qb6 $143 $6 8. Qxb6 axb6 9. Bb5 $16) 8. Qa4+ {84
} (8. Bb5+ Bd7 9. Qa4 e6 10. Nf3 a6 11. Bxd7+ Nxd7 $11 {Shishkin,V (2507)
-Sieciechowicz,M (2390) Poznan op-A 18th 2009 (4) 1/2-1/2}) 8... Bd7 {87} 9.
Qc2 Rc8 10. Bd3 {Retarde à nouveau la sortie Nf3 afin de garder l'option de
jouer Nge2} e6 11. Nf3 (11. Nge2 {Possible également mais après la poussée
e6, le clouage Bg4 n'est plus à craindre et Nf3 est donc plus naturel.}) 11...
Bb4 $1 (11... Be7 {Plus passif} 12. O-O O-O 13. Ne5 $14 {Fressinet,L (2718)
-Gelfand,B (2751) EU-Cup 26th Plovdiv 2010 (5.1) 1/2-1/2}) 12. O-O h6 (12...
Nc4 $5) 13. Ne5 {69} O-O {68} 14. h3 Qe8 $146 (14... a6 15. a3 Bxc3 {Nguyen
Thanh Son (2444)-Nguyen Huynh Minh,H (2500) VIE-chT Nha Trang 2009 (11) 1/2-1/2
}) (14... Qe7 15. Rfc1 Rfd8 16. Qd1 Bxc3 17. bxc3 Be8 18. c4 dxc4 19. Nxc4 Nxc4
20. Bxc4 Bc6 21. Be5 Nd7 22. Bg3 Nb6 23. Bf1 Nd5 24. Qb3 Qd7 25. Qa3 a6 26.
Rab1 Ba4 27. Rc5 Rxc5 28. dxc5 Bc6 29. Rd1 Qe8 30. Qa5 Rd7 31. Bd6 Ne7 32. Rd2
Qd8 33. Qb4 Nf5 34. Bd3 Qg5 35. Be4 Bxe4 36. Qxe4 Qd8 37. g4 Nxd6 38. cxd6 Rxd6
39. Rxd6 Qxd6 40. Qxb7 Qd1+ 41. Kg2 Qa4 42. Qb8+ Kh7 43. Qb1+ g6 44. Qb7 {
Soffer,R (2516)-Postny,E (2635) Acre 2013 1/2-1/2}) 15. a4 Nc6 {36 Joué
après une longue réflexion et l'indien a maintenant un sérieux retard à la
pendule.} 16. Qb3 Qe7 17. Rfc1 Rfd8 18. Ne2 Bd6 {[%emt 0:00:27]} 19. Qxb7 Rb8
20. Nxc6 {[%emt 0:00:35]} Rxb7 21. Nxe7+ Bxe7 22. Rc7 {[%emt 0:00:32]} Rb3 {
[%emt 0:00:16]} 23. Nc3 Rxb2 24. Rxa7 Rb3 25. Bc7 $36 (25. Rc1 Rc8 26. Bc7 Ba3
27. Rc2 $14) 25... Rc8 26. Ba6 $1 Rxc7 (26... Rxc3 $2 27. Bxc8 Bxc8 28. Ba5 {
[%csl Rc3,Re7]}) 27. Rxc7 Bd6 28. Ra7 $2 {[%emt 0:00:15]} (28. Nxd5 $142 {
Curieusement, les Blancs qui avaient encore 15 mns à la pendule, ratent ce
coup intermédiaire qui aurait probablement assuré un gain rapide.} exd5 29.
Rb7 $18) 28... Rxc3 29. a5 Rb3 30. Rb7 Rc3 31. Ra7 {Une petite répétition de
coups pour gagner du temps avec l'incrément} Rb3 32. Bb7 {[%cal Ga5a6]} Kf8
33. a6 $18 Ke7 34. Ra8 Rb2 35. Rh8 Ne8 36. Rxe8+ $1 Bxe8 37. a7 1-0